[Event "XVI Gran Hotel Bali 2017"]
[Site "Benidorm"]
[Date "2017.12.09"]
[Round "10"]
[White "Burguete Archel, Eduardo"]
[Black "Gromovs, Sergejs"]
[Result "0-1"]
[ECO "B54"]
[WhiteElo "2207"]
[BlackElo "2257"]
[Annotator "NA"]
[PlyCount "96"]
[EventDate "2017.??.??"]
[EventType "swiss"]
[EventCountry "ESP"]
[SourceTitle "playchess.com"]
[Source "ChessBase"]
[SourceQuality "1"]
[TimeControl "5400+30"]

1. e4 {[%emt 0:00:00]} c5 {[%emt 0:00:06]} 2. Nf3 {[%emt 0:00:00]} d6 {[%emt 0:00:04]} 3. d4 {[%emt 0:00:00]} cxd4 {[%emt 0:00:40]} 4. Nxd4 {[%emt 0:00:00]} Nf6 {[%emt 0:00:04]} 5. f3 {[%emt 0:00:01]} a6 {[%emt 0:00:02]} 6. c4 {[%emt 0:00:37]} e6 {[%emt 0:00:39]} 7. Nc3 {[%emt 0:00:49]} Be7 {[%emt 0:04:01]} 8. Be3 {[%emt 0:02:01]} O-O {[%emt 0:00:15]} 9. Be2 {[%emt 0:01:58]} Nbd7 {[%emt 0:00:02]} 10. O-O {[%emt 0:01:45]} Qc7 {[%emt 0:00:01]} 11. Qd2 {[%emt 0:06:35]} b6 {[%emt 0:00:04]} 12. Rfc1 {[%emt 0:06:01]} Bb7 {[%emt 0:00:31]} 13. b4 {[%emt 0:02:18]} Rac8 {[%emt 0:00:01]} 14. Rab1 {[%emt 0:08:32]} Qb8 {[%emt 0:00:11]} 15. Na4 {[%emt 0:01:32]} Rfe8 {[%emt 0:00:20]} 16. Kh1 {[%emt 0:19:57]} g6 {[%emt 0:03:44]} 17. Nb3 {[%emt 0:12:16]} Bd8 {[%emt 0:09:46]} 18. Nb2 {[%emt 0:00:50]} Bc7 {[%emt 0:01:00]} 19. Bg1 {[%emt 0:00:02]} d5 {[%emt 0:01:02]} 20. cxd5 {[%emt 0:01:42]} exd5 {[%emt 0:00:40]} 21. exd5 {[%emt 0:00:01]} Rcd8 {[%emt 0:06:07]} 22. Rc4 {[%emt 0:09:56]} Nxd5 {[%emt 0:04:46]} 23. Rd4 {[%emt 0:01:33]} Bf4 {[%emt 0:03:08]} 24. Qe1 {[%emt 0:03:47]} Be5 {[%emt 0:01:59]} 25. Qf1 {[%emt 0:02:07]} Bxd4 {[%emt 0:00:47]} 26. Bxd4 {[%emt 0:00:02]} Nxb4 {[%emt 0:02:02]} 27. Nc4 {[%emt 0:00:03]} b5 {[%emt 0:07:21]} 28. Nba5 {[%emt 0:00:30]} Nc6 {[%emt 0:03:06]} 29. Bf2 {[%emt 0:05:57]} Nxa5 {[%emt 0:01:52]} 30. Nxa5 {[%emt 0:00:07]} Bd5 {[%emt 0:00:51]} 31. Bh4 {[%emt 0:01:02]} Rc8 {[%emt 0:01:38]} 32. Nb3 {[%emt 0:00:01]} Rc2 {[%emt 0:03:26]} 33. Rd1 {[%emt 0:03:25]} Qa8 {[%emt 0:03:20]} 34. Bd3 {[%emt 0:04:42]} Rxa2 {[%emt 0:00:08]} 35. Nd4 {[%emt 0:00:01]} Qa7 {[%emt 0:07:47]} 36. Bb1 {[%emt 0:00:45]} Bc4 {[%emt 0:00:38]} 37. Qg1 {[%emt 0:00:23]} Rb2 {[%emt 0:00:24]} 38. Be4 {[%emt 0:00:09]} Ne5 {[%emt 0:01:57]} 39. Qe3 {[%emt 0:03:53]} Qc5 {[%emt 0:08:19]} 40. Qh6 {[%emt 0:00:50]} Qd6 {[%emt 0:02:29]} 41. Qc1 {[%emt 0:00:37]} Qa3 {[%emt 0:01:26]} 42. Bf6 {[%emt 0:00:31]} Ra2 {[%emt 0:01:05]} 43. Qh6 {[%emt 0:01:15]} Qf8 {[%emt 0:00:02]} 44. Qh4 {[%emt 0:01:33]} Qd6 {[%emt 0:02:07]} 45. Qf4 {[%emt 0:01:36]} Qxd4 {[%emt 0:00:49]} 46. Qc1 {[%emt 0:00:01]} Qf2 {[%emt 0:01:39]} 47. Rg1 {[%emt 0:00:02]} Qd2 {[%emt 0:02:37]} 48. Qb1 {[%emt 0:00:18]} Qf4 {[%emt 0:00:45]} 0-1

[Event "XVI Gran Hotel Bali 2017"]
[Site "Benidorm"]
[Date "2017.12.09"]
[Round "10"]
[White "Cantero Navarro, Antonio"]
[Black "Moreno Ibanez, Miguel"]
[Result "1/2-1/2"]
[ECO "B32"]
[WhiteElo "2167"]
[BlackElo "2272"]
[Annotator "NA"]
[PlyCount "102"]
[EventDate "2017.??.??"]
[EventType "swiss"]
[EventCountry "ESP"]
[SourceTitle "playchess.com"]
[Source "ChessBase"]
[SourceQuality "1"]
[TimeControl "5400+30"]

1. e4 {[%emt 0:04:41]} c5 {[%emt 0:01:05]} 2. Nf3 {[%emt 0:00:06]} Nc6 {[%emt 0:00:31]} 3. d4 {[%emt 0:00:06]} cxd4 {[%emt 0:00:21]} 4. Nxd4 {[%emt 0:00:07]} e5 {[%emt 0:00:20]} 5. Nxc6 {[%emt 0:00:08]} bxc6 {[%emt 0:01:15]} 6. Bd3 {[%emt 0:00:14]} Bc5 {[%emt 0:03:25]} 7. O-O {[%emt 0:00:31]} Ne7 {[%emt 0:07:14]} 8. Nc3 {[%emt 0:06:36]} Ng6 {[%emt 0:04:13]} 9. Be3 {[%emt 0:00:24]} Qe7 {[%emt 0:10:05]} 10. Qe2 {[%emt 0:03:48]} O-O {[%emt 0:02:12]} 11. Rae1 {[%emt 0:01:23]} Rb8 {[%emt 0:03:29]} 12. Na4 {[%emt 0:10:51]} Bxe3 {[%emt 0:03:38]} 13. fxe3 {[%emt 0:01:19]} d6 {[%emt 0:09:32]} 14. Rf2 {[%emt 0:00:06]} Be6 {[%emt 0:00:53]} 15. Ref1 {[%emt 0:00:05]} Rb4 {[%emt 0:11:06]} 16. b3 {[%emt 0:00:17]} d5 {[%emt 0:09:41]} 17. c3 {[%emt 0:00:39]} Rbb8 {[%emt 0:06:35]} 18. b4 {[%emt 0:01:16]} a5 {[%emt 0:02:03]} 19. Nc5 {[%emt 0:02:06]} axb4 {[%emt 0:00:47]} 20. Na6 {[%emt 0:00:43]} bxc3 {[%emt 0:03:29]} 21. Nxb8 {[%emt 0:00:44]} Rxb8 {[%emt 0:00:14]} 22. exd5 {[%emt 0:02:10]} cxd5 {[%emt 0:01:55]} 23. a4 {[%emt 0:15:49]} Rb2 {[%emt 0:08:00]} 24. Qe1 {[%emt 0:01:12]} Rxf2 {[%emt 0:04:18]} 25. Rxf2 {[%emt 0:00:06]} Qb4 {[%emt 0:00:32]} 26. Qb1 {[%emt 0:07:35]} Qxb1+ {[%emt 0:04:33]} 27. Bxb1 {[%emt 0:00:06]} d4 {[%emt 0:00:06]} 28. exd4 {[%emt 0:00:54]} exd4 {[%emt 0:00:01]} 29. a5 {[%emt 0:00:19]} Bc4 {[%emt 0:00:26]} 30. Rf5 {[%emt 0:02:19]} d3 {[%emt 0:02:27]} 31. Rc5 {[%emt 0:01:20]} d2 {[%emt 0:00:54]} 32. Bc2 {[%emt 0:00:52]} Bd3 {[%emt 0:00:36]} 33. Bd1 {[%emt 0:00:39]} c2 {[%emt 0:00:23]} 34. Rxc2 {[%emt 0:00:07]} Bxc2 {[%emt 0:00:14]} 35. Bxc2 {[%emt 0:00:05]} Ne5 {[%emt 0:00:44]} 36. a6 {[%emt 0:00:36]} Nc6 {[%emt 0:00:03]} 37. Kf2 {[%emt 0:00:19]} Kf8 {[%emt 0:00:32]} 38. Ke2 {[%emt 0:00:22]} Ke7 {[%emt 0:01:02]} 39. Bxh7 {[%emt 0:02:12]} d1=Q+ {[%emt 0:00:18]} 40. Kxd1 {[%emt 0:00:09]} g6 {[%emt 0:00:27]} 41. Kd2 {[%emt 0:01:49]} Kf8 {[%emt 0:00:49]} 42. Kc3 {[%emt 0:00:06]} Kg7 {[%emt 0:00:28]} 43. Bxg6 {[%emt 0:00:28]} fxg6 {[%emt 0:00:31]} 44. Kc4 {[%emt 0:00:07]} Kf6 {[%emt 0:00:23]} 45. Kc5 {[%emt 0:00:05]} Na7 {[%emt 0:00:06]} 46. Kb6 {[%emt 0:00:26]} Nc8+ {[%emt 0:00:04]} 47. Kc7 {[%emt 0:07:04]} Na7 {[%emt 0:00:10]} 48. Kb7 {[%emt 0:00:09]} Nb5 {[%emt 0:00:08]} 49. Kb6 {[%emt 0:02:01]} Nd6 {[%emt 0:00:12]} 50. Kc6 {[%emt 0:00:22]} Nc8 {[%emt 0:00:12]} 51. Kc7 {[%emt 0:01:04]} Na7 {[%emt 0:00:09]} 1/2-1/2